fUSD/lending_fUSD_20250414
["ID","MTS","AMOUNT","RATE_DAILY","PERIOD"]
[357979314,1744641559377,-535.36434767,0.0004932,120]
[357979315,1744641559404,-535.36434767,0.0004932,120]
[357979316,1744641559436,-535.36434767,0.0004932,120]
[357979317,1744641559466,-535.36434767,0.0004932,120]
[357979318,1744641559495,-535.36434767,0.0004932,120]
[357979319,1744641559527,-535.36434767,0.0004932,120]
[357979320,1744641559556,-535.36434767,0.0004932,120]
[357979321,1744641559583,-535.36434767,0.0004932,120]
[357979322,1744641559611,-535.36434767,0.0004932,120]
[357979323,1744641559638,-535.36434767,0.0004932,120]
[357979324,1744641559667,-535.36434767,0.0004932,120]
[357979325,1744641559694,-535.36434767,0.0004932,120]
[357979326,1744641559721,-535.36434767,0.0004932,120]
[357979327,1744641559751,-535.36434767,0.0004932,120]
[357979328,1744641559777,-535.36434767,0.0004932,120]
[357979329,1744641559805,-535.36,0.0004932,120]
[357979330,1744641559832,-244.56660791,0.0004932,120]
[357979331,1744641559860,-244.56660791,0.0004932,120]
[357979332,1744641559887,-244.56660791,0.0004932,120]
[357979333,1744641559916,-244.56660791,0.0004932,120]
[357979334,1744641560133,-244.56660791,0.0004932,120]
[357979335,1744641560161,-244.56660791,0.0004932,120]
[357979336,1744641560187,-244.56660791,0.0004932,120]
[357979337,1744641560214,-244.56660791,0.0004932,120]
[357979338,1744641560238,-244.56660791,0.0004932,120]
[357979339,1744641560265,-244.56660791,0.0004932,120]
[357979340,1744641560292,-244.56660791,0.0004932,120]
[357979341,1744641560318,-244.56660791,0.0004932,120]
[357979342,1744641560344,-244.56660791,0.0004932,120]
[357979343,1744641560375,-244.56660791,0.0004932,120]
[357979344,1744641560402,-244.56660791,0.0004932,120]
[357979345,1744641560429,-244.56660791,0.0004932,120]
[357979346,1744641560456,-244.56660791,0.0004932,120]
[357979347,1744641560483,-244.56660791,0.0004932,120]
[357979348,1744641560512,-244.56660791,0.0004932,120]
[357979349,1744641560541,-244.56,0.0004932,120]
[357979350,1744641560568,-570.65541845,0.0004932,120]
[357979351,1744641560595,-570.65541845,0.0004932,120]
[357979352,1744641560622,-570.65541845,0.0004932,120]
[357979353,1744641560648,-570.65541845,0.0004932,120]
[357979354,1744641560674,-570.65541845,0.0004932,120]
[357979355,1744641560699,-570.65541845,0.0004932,120]
[357979356,1744641560724,-570.65541845,0.0004932,120]
[357979357,1744641560752,-570.65541845,0.0004932,120]
[357979358,1744641560780,-570.65541845,0.0004932,120]
[357979359,1744641560808,-570.65541845,0.0004932,120]
[357979360,1744641560837,-570.65541845,0.0004932,120]
[357979361,1744641560864,-570.65541845,0.0004932,120]
[357979362,1744641560891,-570.65541845,0.0004932,120]
[357979363,1744641560918,-570.65541845,0.0004932,120]
[357979364,1744641560945,-570.65541845,0.0004932,120]
[357979365,1744641560971,-570.65541845,0.0004932,120]
[357979366,1744641560996,-570.65541845,0.0004932,120]
[357979367,1744641561024,-570.65541845,0.0004932,120]
[357979368,1744641561050,-570.65541845,0.0004932,120]
[357979369,1744641561076,-570.65,0.0004932,120]
[357979370,1744641561102,-719.59870874,0.00049342,120]
[357979371,1744641561130,-246.32663174,0.000494,120]
[357979372,1744641561156,-500.0,0.000494,120]
[357979373,1744641561184,-350.0,0.000494,120]
[357979374,1744641561212,-1883.87021,0.00049488,30]
[357979375,1744641561255,-223.57533,0.000495,120]
[357979376,1744641561284,-1561.84250446,0.000495,120]
[357979377,1744641561311,-1883.87021,0.00049688,30]
[357979378,1744641561337,-636.64011984,0.0004969,120]
[357979379,1744641561364,-404.67777132,0.0004977,120]
[357979380,1744641561394,-1089.64232714,0.000498,30]
[357979381,1744641561421,-1883.87021,0.00049888,30]
[357979382,1744641561447,-1868.09769782,0.00049998,120]
[357979383,1744641561474,-1000.0,0.00049999,120]
[357979384,1744641561505,-50000.0,0.0005,50]
[357979385,1744641561532,-531.6550367,0.0005,120]
[357979386,1744641561559,-2240.0,0.0005,120]
[357979387,1744641561584,-3259.10806433,0.0005,120]
[357979388,1744641561611,-213.44132511,0.0005,120]
[357979389,1744641561636,-720.11519528,0.0005,120]
[357979390,1744641561663,-500.0,0.0005,30]
[357979391,1744641561688,-5000.0,0.0005,120]
[357979392,1744641561716,-400.0,0.0005,120]
[357979393,1744641561743,-500.0,0.0005,120]
[357979394,1744641561774,-2000.0,0.0005,120]
[357979395,1744641561804,-1200.0,0.0005,120]
[357979396,1744641561834,-2000.0,0.0005,120]
[357979397,1744641561866,-800.0,0.0005,120]
[357979398,1744641561897,-700.0,0.0005,90]
[357979399,1744641561929,-249358.83462299,0.0005,120]
[357979400,1744641564762,200.0,0.000173,6]
[357979401,1744641565764,500.0,0.000174,6]
[357979402,1744641567916,-279.41333484,0.00049999,120]
[357979403,1744641567945,-750641.16537701,0.0005,120]
[357979404,1744641567975,-1000000.0,0.0005,120]
[357979405,1744641568008,-1000000.0,0.0005,120]
[357979406,1744641568040,-1000000.0,0.0005,120]
[357979407,1744641568071,-249079.42128815,0.0005,120]
[357979408,1744641568301,800.0,0.000175,6]
[357979409,1744641569997,1100.0,0.000176,6]
[357979410,1744641572108,1400.0,0.000177,6]
[357979411,1744641573612,-181.63,0.0004199,120]
[357979412,1744641573670,-750920.57871185,0.0005,120]
[357979413,1744641573697,-1663.19,0.0005,30]
[357979414,1744641573724,-500.0,0.0005,120]
[357979415,1744641573751,-500.0,0.0005,120]
[357979416,1744641573779,-500.0,0.0005,120]
[357979417,1744641573805,-500.0,0.0005,120]
[357979418,1744641573832,-500.0,0.0005,120]
[357979419,1744641573858,-500.0,0.0005,120]
[357979420,1744641573884,-500.0,0.0005,120]
[357979421,1744641573912,-500.0,0.0005,120]
[357979422,1744641573939,-500.0,0.0005,120]
[357979423,1744641573966,-417.83141549,0.0005,120]
[357979424,1744641573994,-3000.0,0.0005,120]
[357979425,1744641574022,-1089.0987464,0.0005,120]
[357979426,1744641574049,-2751.5798163,0.0005,120]
[357979427,1744641574076,-500.0,0.0005,120]
[357979428,1744641574109,-2067.0,0.0005,120]
[357979429,1744641574140,-1489.1751919,0.0005,120]
[357979430,1744641574172,-649.28056686,0.0005,120]
[357979431,1744641574199,-246.04418778,0.0005,120]
[357979432,1744641574226,-831.12031416,0.0005,30]
[357979433,1744641574254,-1000.0,0.0005,60]
[357979434,1744641574281,-1000.0,0.0005,120]
[357979435,1744641574308,-572.85565907,0.0005,30]
[357979436,1744641574334,-1572.10380115,0.0005,120]
[357979437,1744641574360,-737.24663007,0.0005,120]
[357979438,1744641574388,-743.15713469,0.0005,120]
[357979439,1744641574414,-550.03472157,0.0005,120]
[357979440,1744641574440,-5862.57267868,0.0005,120]
[357979441,1744641574467,-955.91296091,0.0005,120]
[357979442,1744641574493,-220.06324568,0.0005,120]
[357979443,1744641574521,-540.45191561,0.0005,120]
[357979444,1744641574547,-228.05557626,0.0005,120]
[357979445,1744641574573,-319.63,0.0005,120]
[357979446,1744641574599,-10294.81032438,0.0005,30]
[357979447,1744641574624,-1379.88345409,0.0005,30]
[357979448,1744641574651,-50000.0,0.0005,40]
[357979449,1744641574676,-250.0,0.0005,30]
[357979450,1744641574702,-20266.09472051,0.0005,30]
[357979451,1744641574728,-3000.0,0.0005,120]
[357979452,1744641574755,-4462.0,0.0005,120]
[357979453,1744641574783,-1000.0,0.00050032,30]
[357979454,1744641574809,-151.0,0.000501,106]
[357979455,1744641574836,-5000.0,0.000502,120]
[357979456,1744641574862,-160.0,0.000502,120]
[357979457,1744641574889,-5000.0,0.000504,120]
[357979458,1744641574915,-5000.0,0.000506,120]
[357979459,1744641574942,-903.27507932,0.00050684,120]
[357979460,1744641574967,-5000.0,0.000508,120]
[357979461,1744641574993,-780.0,0.000508,120]
[357979462,1744641575020,-223.57533,0.000508,120]
[357979463,1744641575049,-50000.0,0.00051,51]
[357979464,1744641575075,-2000.0,0.00051,120]
[357979465,1744641575228,-5000.0,0.00051,120]
[357979466,1744641575254,-10000.0,0.00051,120]
[357979467,1744641575284,-820.0,0.00051,120]
[357979468,1744641575313,-1000000.0,0.00051,120]
[357979469,1744641575340,-1000000.0,0.00051,120]
[357979470,1744641575367,-1000000.0,0.00051,120]
[357979471,1744641575394,-34700.74781727,0.00051,120]
[357979472,1744641575618,200.0,0.000178,6]
[357979473,1744641576306,200.0,0.000179,6]
[357979474,1744641578404,200.0,0.000189,6]
[357979475,1744641610247,-10053.82,0.0005,120]
[357979476,1744641610277,-1000000.0,0.0005,120]
[357979477,1744641610306,-1000000.0,0.0005,120]
[357979478,1744641610333,-741.3571625,0.0005,120]
[357979479,1744641610362,-1000000.0,0.0005,120]
[357979480,1744641610392,-989204.8228375,0.0005,120]
[357979481,1744641614601,-10795.1771625,0.0005,120]
[357979482,1744641614631,-1000000.0,0.0005,120]
[357979483,1744641614662,-9898.13,0.0005,120]
[357979484,1744641614689,-261.09605997,0.0005,120]
[357979485,1744641614719,-1000000.0,0.0005,120]
[357979486,1744641614748,-1000000.0,0.0005,120]
[357979487,1744641614775,-5048.05,0.0005,120]
[357979488,1744641614804,-254.28395393,0.0005,120]
[357979489,1744641614835,-965299.25218273,0.00051,120]
[357979490,1744641614867,-8444.01064087,0.00051,120]
[357979491,1744641677086,-507.160252,0.00044,43]
[357979492,1744641677131,-500.0,0.000451,120]
[357979493,1744641677160,-500.0,0.000451,120]
[357979494,1744641677190,-500.0,0.00045648,120]
[357979495,1744641677218,-500.0,0.00045648,120]
[357979496,1744641677249,-500.0,0.00046196,120]
[357979497,1744641677277,-500.0,0.00046196,120]
[357979498,1744641677306,-600.0,0.00046196,120]
[357979499,1744641677334,-600.0,0.0004647,120]
[357979500,1744641677361,-500.0,0.00046744,120]
[357979501,1744641677387,-500.0,0.00047292,120]
[357979502,1744641677414,-620.27254108,0.0004784,120]
[357979503,1744641677441,-1068.0,0.0004845,30]
[357979504,1744641677469,-3000.00000099,0.00049505,120]
[357979505,1744641677498,-293.46601401,0.0005,120]
[357979506,1744641677526,-251.72010844,0.0005,120]
[357979507,1744641677553,-253.53296469,0.0005,120]
[357979508,1744641677580,-261.4116469,0.0005,120]
[357979509,1744641677610,-259.67516527,0.0005,120]
[357979510,1744641677639,-4463.0,0.0005,120]
[357979511,1744641677666,-203.9998201,0.0005,120]
[357979512,1744641677695,-528192.0,0.0005,120]
[357979513,1744641677724,-991555.98935913,0.00051,120]
[357979514,1744641677752,-1000000.0,0.00051,120]
[357979515,1744641677780,-1000000.0,0.00051,120]
[357979516,1744641677814,-463869.77212739,0.00051,120]
[357979517,1744641678289,1061.85132799,0.00017501,2]
[357979518,1744641678312,8885.14867201,0.00017501,2]
[357979519,1744641678704,203.307046,0.00017462,2]
[357979520,1744641682942,-1068.0,0.00046028,30]
[357979521,1744641682971,-500.0,0.00046744,120]
[357979522,1744641683000,-600.0,0.00046744,120]
[357979523,1744641683029,-600.0,0.00047018,120]
[357979524,1744641683058,-500.0,0.00047292,120]
[357979525,1744641683087,-600.0,0.00047292,120]
[357979526,1744641683118,-500.0,0.0004784,120]
[357979527,1744641683147,-500.0,0.00048388,120]
[357979528,1744641683185,-1000000.0,0.0005,120]
[357979529,1744641683218,-1000000.0,0.0005,120]
[357979530,1744641683254,-1000000.0,0.0005,120]
[357979531,1744641683285,-536130.22787261,0.00051,120]
[357979532,1744641683315,-459001.77212739,0.00051,120]
[357979533,1744641687281,-600.0,0.00047566,120]
[357979534,1744641687310,-600.0,0.00048114,120]
[357979535,1744641687338,-600.0,0.00048662,120]
[357979536,1744641687366,-500.0,0.00048936,120]
[357979537,1744641687396,-500.0,0.00049484,120]
[357979538,1744641687428,-540998.22787261,0.00051,120]
[357979539,1744641687457,-150.0,0.00051,30]
[357979540,1744641687485,-150.0,0.00051,30]
[357979541,1744641687513,-150.0,0.00051,30]
[357979542,1744641687540,-154.341,0.00051,30]
[357979543,1744641687568,-1068.0,0.00051,30]
[357979544,1744641687596,-150.0,0.00051,120]
[357979545,1744641687628,-1000000.0,0.00051,120]
[357979546,1744641687660,-1000000.0,0.00051,120]
[357979547,1744641687689,-1000000.0,0.00051,120]
[357979548,1744641687717,-151.0,0.000511,107]
[357979549,1744641687744,-5000.0,0.000512,120]
[357979550,1744641687772,-5000.0,0.000514,120]
[357979551,1744641687802,-444228.43112739,0.000515,120]
[357979552,1744641690854,-600.0,0.0004921,120]
[357979553,1744641690887,-600.0,0.00049758,120]
[357979554,1744641690918,-606.31,0.0005,120]
[357979555,1744641690951,-555771.56887261,0.000515,120]
[357979556,1744641690985,-150.0,0.000515,120]
[357979557,1744641691013,-5000.0,0.000516,120]
[357979558,1744641691042,-5000.0,0.000518,120]
[357979559,1744641691071,-540.14,0.00051877,120]
[357979560,1744641691103,-50000.0,0.00052,52]
[357979561,1744641691139,-1592.14442903,0.00052,30]
[357979562,1744641691170,-5000.0,0.00052,120]
[357979563,1744641691200,-200.0,0.00052,120]
[357979564,1744641691228,-2000.0,0.00052,120]
[357979565,1744641691256,-1100.0,0.00052,120]
[357979566,1744641691283,-10000.0,0.00052,120]
[357979567,1744641691312,-1000000.0,0.00052,120]
[357979568,1744641691343,-1000000.0,0.00052,120]
[357979569,1744641691373,-1000000.0,0.00052,120]
[357979570,1744641691402,-361839.83669836,0.00052,120]
[357979571,1744641743945,-107956.47,0.00045,60]
[357979572,1744641743973,-1000.0,0.00049,120]
[357979573,1744641744000,-19734.25,0.000494,120]
[357979574,1744641744029,-626.05228793,0.0005,120]
[357979575,1744641744058,-1000000.0,0.0005,120]
[357979576,1744641744089,-1000000.0,0.0005,120]
[357979577,1744641744120,-1000000.0,0.0005,120]
[357979578,1744641744151,-870683.22771207,0.0005,120]
[357979579,1744641744271,483.1,0.00017428,2]
[357979580,1744641748441,-129316.77228793,0.0005,120]
[357979581,1744641748473,-1000000.0,0.0005,120]
[357979582,1744641748503,-103760.0,0.0005,120]
[357979583,1744641748532,-1000000.0,0.0005,120]
[357979584,1744641748560,-2000.0,0.0005,120]
[357979585,1744641748589,-1000000.0,0.0005,120]
[357979586,1744641748616,-600.0,0.00050306,120]
[357979587,1744641748642,-600.0,0.00050854,120]
[357979588,1744641748668,-1000.0,0.00051,120]
[357979589,1744641748696,-762723.22771207,0.00051,120]
[357979590,1744641754502,-237276.77228793,0.00051,120]
[357979591,1744641754535,-1000000.0,0.00051,120]
[357979592,1744641754567,-1000000.0,0.00051,120]
[357979593,1744641754597,-1000000.0,0.00051,120]
[357979594,1744641754624,-323.65,0.00051,120]
[357979595,1744641754653,-600.0,0.00051402,120]
[357979596,1744641754681,-600.0,0.0005195,120]
[357979597,1744641754710,-638160.16330164,0.00052,120]
[357979598,1744641754737,-3000.0,0.00052,120]
[357979599,1744641754765,-676.58551298,0.00052,30]
[357979600,1744641754793,-689.76366298,0.00052,30]
[357979601,1744641754820,-151.0,0.00052,120]
[357979602,1744641754852,-574.71394836,0.00052,30]
[357979603,1744641754882,-462.63901388,0.00052,120]
[357979604,1744641754911,-4462.0,0.00052,120]
[357979605,1744641754944,-1000000.0,0.00052,120]
[357979606,1744641754972,-4463.0,0.00052,120]
[357979607,1744641755002,-1000000.0,0.00052,120]
[357979608,1744641755034,-108559.71227223,0.00052,120]
[357979609,1744641759625,-100000.0,0.00051,120]
[357979610,1744641759654,-100000.0,0.00051,120]
[357979611,1744641759684,-100000.0,0.00051,120]
[357979612,1744641759714,-100000.0,0.00051,120]
[357979613,1744641759743,-891440.28772777,0.00052,120]
[357979614,1744641759773,-1000000.0,0.00052,120]
[357979615,1744641759804,-1000000.0,0.00052,120]
[357979616,1744641759834,-1000000.0,0.00052,120]
[357979617,1744641759864,-1000000.0,0.00052,120]
[357979618,1744641759894,-708559.71227223,0.00052,120]
[357979619,1744641764382,-100000.0,0.00051,120]
[357979620,1744641764413,-291440.28772777,0.00052,120]
[357979621,1744641764446,-151.0,0.00052,120]
[357979622,1744641764474,-613.47,0.00052,120]
[357979623,1744641764501,-151.0,0.00052,120]
[357979624,1744641764528,-156.587,0.00052,120]
[357979625,1744641764555,-162.380719,0.00052,120]
[357979626,1744641764582,-168.3888056,0.00052,120]
[357979627,1744641764609,-174.61919141,0.00052,120]
[357979628,1744641764636,-181.08010149,0.00052,120]
[357979629,1744641764663,-187.78006525,0.00052,120]
[357979630,1744641764690,-344.76842846,0.00052,120]
[357979631,1744641764717,-1000.0,0.000521,120]
[357979632,1744641764745,-223.57533,0.000521,120]
[357979633,1744641764772,-151.0,0.000521,108]
[357979634,1744641764799,-1000.0,0.0005213,50]
[357979635,1744641764826,-1000.0,0.0005213,50]
[357979636,1744641764854,-1000.0,0.0005213,50]
[357979637,1744641764881,-1000.0,0.0005213,50]
[357979638,1744641764909,-1000.0,0.0005213,50]
[357979639,1744641764937,-1000.0,0.0005213,50]
[357979640,1744641764965,-1000.0,0.0005213,50]
[357979641,1744641764993,-1000.0,0.0005213,50]
[357979642,1744641765022,-1000.0,0.0005213,50]
[357979643,1744641765050,-1000.0,0.0005213,50]
[357979644,1744641765078,-1000.0,0.0005213,50]
[357979645,1744641765110,-1000.0,0.0005213,50]
[357979646,1744641765137,-1000.0,0.0005213,50]
[357979647,1744641765168,-1000.0,0.0005213,50]
[357979648,1744641765201,-1000.0,0.0005213,50]
[357979649,1744641765229,-1000.0,0.0005213,50]
[357979650,1744641765257,-1000.0,0.0005213,50]
[357979651,1744641765285,-1000.0,0.0005213,50]
[357979652,1744641765312,-838.98,0.0005213,50]
[357979653,1744641765340,-1000.0,0.0005213,50]
[357979654,1744641765366,-1000.0,0.0005213,50]
[357979655,1744641765392,-5000.0,0.000522,120]
[357979656,1744641765421,-410.98751533,0.000522,60]
[357979657,1744641765450,-5000.0,0.000524,120]
[357979658,1744641765478,-160.0,0.000524,120]
[357979659,1744641765504,-600.0,0.00052498,120]
[357979660,1744641765538,-1000000.0,0.000525,120]
[357979661,1744641765565,-5000.0,0.000526,120]
[357979662,1744641765592,-5000.0,0.000528,120]
[357979663,1744641765619,-151.0,0.00052959,120]
[357979664,1744641765648,-50000.0,0.00053,53]
[357979665,1744641765676,-5000.0,0.00053,120]
[357979666,1744641765706,-1000.0,0.00053,120]
[357979667,1744641765734,-10000.0,0.00053,120]
[357979668,1744641765765,-1000000.0,0.00053,120]
[357979669,1744641765796,-1000000.0,0.00053,120]
[357979670,1744641765826,-1000000.0,0.00053,120]
[357979671,1744641765853,-3167.19415142,0.00053,30]
[357979672,1744641765882,-1000000.0,0.00053,120]
[357979673,1744641765909,-1044.0,0.00053,120]
[357979674,1744641765941,-279.76455059,0.000531,109]
[357979675,1744641765971,-531.52541462,0.00053161,30]
[357979676,1744641766001,-5000.0,0.000532,120]
[357979677,1744641766031,-5000.0,0.000534,120]
[357979678,1744641766059,-223.57533,0.000534,120]
[357979679,1744641766088,-504.33,0.00053424,30]
[357979680,1744641766121,-480982.70566906,0.000535,120]
[357979681,1744641775765,-100000.0,0.0005,120]
[357979682,1744641775798,-1000000.0,0.00052,120]
[357979683,1744641775831,-519017.29433094,0.000535,120]
[357979684,1744641775858,-1068.0,0.0005355,30]
[357979685,1744641775886,-5000.0,0.000536,120]
[357979686,1744641775915,-186.95307,0.000537,120]
[357979687,1744641776094,-150.0,0.000537,120]
[357979688,1744641776137,-150.0,0.000537,120]
[357979689,1744641776173,-2000.0,0.00053786,120]
[357979690,1744641776210,-5000.0,0.000538,120]
[357979691,1744641776240,-814.13,0.00053863,120]
[357979692,1744641776271,-814.13,0.00053863,120]
[357979693,1744641776300,-814.13,0.00053863,120]
[357979694,1744641776329,-814.13,0.00053863,120]
[357979695,1744641776359,-814.13,0.00053863,120]
[357979696,1744641776389,-814.13,0.00053863,120]
[357979697,1744641776419,-814.13,0.00053863,120]
[357979698,1744641776448,-814.13,0.00053863,120]
[357979699,1744641776477,-814.13,0.00053863,120]
[357979700,1744641776507,-814.13,0.00053863,120]
[357979701,1744641776537,-814.13,0.00053863,120]
[357979702,1744641776566,-814.13,0.00053863,120]
[357979703,1744641776595,-814.13,0.00053863,120]
[357979704,1744641776624,-814.13,0.00053863,120]
[357979705,1744641776653,-814.13,0.00053863,120]
[357979706,1744641776682,-814.13,0.00053863,120]
[357979707,1744641776710,-814.13,0.00053863,120]
[357979708,1744641776739,-814.13,0.00053863,120]
[357979709,1744641776771,-814.13,0.00053863,120]
[357979710,1744641776800,-814.13,0.00053863,120]
[357979711,1744641776831,-814.13,0.00053863,120]
[357979712,1744641776861,-814.13,0.00053863,120]
[357979713,1744641776891,-814.13,0.00053863,120]
[357979714,1744641776921,-814.36132981,0.00053863,120]
[357979715,1744641776951,-404.54547412,0.00053898,120]
[357979716,1744641776981,-183.91776453,0.00053898,120]
[357979717,1744641777010,-151.0,0.00053918,120]
[357979718,1744641777040,-504.33,0.00053972,32]
[357979719,1744641777072,-50000.0,0.00054,54]
[357979720,1744641777100,-3739.19131106,0.00054,120]
[357979721,1744641777128,-5000.0,0.00054,120]
[357979722,1744641777159,-400.0,0.00054,120]
[357979723,1744641777190,-1000.0,0.00054,120]
[357979724,1744641777219,-1000.0,0.00054,120]
[357979725,1744641777249,-10000.0,0.00054,120]
[357979726,1744641777280,-1000000.0,0.00054,120]
[357979727,1744641777310,-1000000.0,0.00054,120]
[357979728,1744641777339,-2038.43401363,0.00054,120]
[357979729,1744641777367,-476.3038062,0.00054,120]
[357979730,1744641777395,-1202.63332873,0.00054,120]
[357979731,1744641777428,-7426.92892,0.00054,30]
[357979732,1744641777458,-252.613389,0.00054,120]
[357979733,1744641777486,-201421.7569776,0.00054,120]
[357979734,1744641777513,-4462.0,0.00054,120]
[357979735,1744641777546,-1000000.0,0.00054,120]
[357979736,1744641777576,-4463.0,0.00054,120]
[357979737,1744641777605,-5000.0,0.000542,120]
[357979738,1744641777636,-1000000.0,0.000545,120]
[357979739,1744641777665,-3000.0,0.000545,120]
[357979740,1744641777696,-45761.74628438,0.000545,120]
[357979741,1744641782538,-1000000.0,0.0005,120]
[357979742,1744641782569,-1000000.0,0.0005,120]
[357979743,1744641782599,-1000000.0,0.0005,120]
[357979744,1744641782632,-954238.25371562,0.000545,120]
[357979745,1744641782660,-504.33,0.0005452,34]
[357979746,1744641782687,-995.88909905,0.000546,120]
[357979747,1744641782717,-160.0,0.000546,120]
[357979748,1744641782745,-224.47,0.000547,120]
[357979749,1744641782775,-223.57533,0.000547,120]
[357979750,1744641782803,-1924.54224818,0.0005477,120]
[357979751,1744641782831,-272.49427866,0.00054794,120]
[357979752,1744641782861,-1102.89,0.00054794,120]
[357979753,1744641782891,-500.0,0.00054794,120]
[357979754,1744641782919,-177.98647119,0.00054794,120]
[357979755,1744641782949,-500.0,0.00054794,120]
[357979756,1744641782978,-152.35499743,0.00054794,120]
[357979757,1744641783008,-500.0,0.00054794,120]
[357979758,1744641783038,-525.91133324,0.00054794,120]
[357979759,1744641783069,-500.0,0.00054794,120]
[357979760,1744641783099,-500.0,0.00054794,120]
[357979761,1744641783128,-500.0,0.00054794,120]
[357979762,1744641783158,-220.05249403,0.00054794,120]
[357979763,1744641783191,-915.7,0.00054794,120]
[357979764,1744641783222,-915.7,0.00054794,120]
[357979765,1744641783254,-915.7,0.00054794,120]
[357979766,1744641783286,-915.7,0.00054794,120]
[357979767,1744641783315,-915.7,0.00054794,120]
[357979768,1744641783344,-915.7,0.00054794,120]
[357979769,1744641783374,-915.7,0.00054794,120]
[357979770,1744641783402,-915.7,0.00054794,120]
[357979771,1744641783432,-915.7,0.00054794,120]
[357979772,1744641783461,-915.7,0.00054794,120]
[357979773,1744641783490,-915.7,0.00054794,120]
[357979774,1744641783519,-915.7,0.00054794,120]
[357979775,1744641783548,-915.7,0.00054794,120]
[357979776,1744641783576,-915.7,0.00054794,120]
[357979777,1744641783606,-915.7,0.00054794,120]
[357979778,1744641783636,-915.7,0.00054794,120]
[357979779,1744641783665,-915.7,0.00054794,120]
[357979780,1744641783693,-915.7,0.00054794,120]
[357979781,1744641783723,-915.7,0.00054794,120]
[357979782,1744641783751,-915.7,0.00054794,120]
[357979783,1744641783781,-915.7,0.00054794,120]
[357979784,1744641783811,-915.7,0.00054794,120]
[357979785,1744641783840,-915.7,0.00054794,120]
[357979786,1744641783868,-915.74394298,0.00054794,120]
[357979787,1744641783895,-500.0,0.00054794,120]
[357979788,1744641783924,-500.0,0.00054794,120]
[357979789,1744641783954,-500.0,0.00054794,120]
[357979790,1744641783983,-560.62099875,0.00054794,120]
[357979791,1744641784011,-500.0,0.00054794,120]
[357979792,1744641784038,-500.0,0.00054794,120]
[357979793,1744641784066,-500.0,0.00054794,120]
[357979794,1744641784094,-500.0,0.00054794,120]
[357979795,1744641784121,-500.0,0.00054794,120]
[357979796,1744641784149,-500.0,0.00054794,120]
[357979797,1744641784178,-500.0,0.00054794,120]
[357979798,1744641784213,-500.0,0.00054794,120]
[357979799,1744641784242,-500.0,0.00054794,120]
[357979800,1744641784273,-500.0,0.00054794,120]
[357979801,1744641784301,-500.0,0.00054794,120]
[357979802,1744641784329,-500.0,0.00054794,120]
[357979803,1744641784358,-500.0,0.00054794,120]
[357979804,1744641784386,-500.0,0.00054794,120]
[357979805,1744641784415,-612.72465474,0.00054794,120]
[357979806,1744641784443,-500.0,0.00054794,30]
[357979807,1744641784475,-500.0,0.00054794,30]
[357979808,1744641784502,-500.0,0.00054794,30]
[357979809,1744641784531,-500.0,0.00054794,30]
[357979810,1744641784697,-500.0,0.00054794,30]
[357979811,1744641784737,-500.0,0.00054794,30]
[357979812,1744641784764,-500.0,0.00054794,30]
[357979813,1744641784792,-500.0,0.00054794,30]